bitfinex/quotes_BTCUSD_20241208
["timestamp","ask_amount","ask_price","bid_price","bid_amount"]
[1733669490252,0.63304352,100050.0,100030.0,0.15]
[1733669490397,0.63504352,100050.0,100030.0,0.15]
[1733669490628,0.63504352,100050.0,100020.0,0.55218014]
[1733669490629,0.63829352,100050.0,100020.0,0.55218014]
[1733669490833,0.45937052,100050.0,100040.0,0.000865]
[1733669491263,0.46137052,100050.0,100040.0,0.000865]
[1733669491874,0.46144128,100050.0,100040.0,0.000865]
[1733669492064,0.36963446,100050.0,100040.0,0.000865]
[1733669492268,0.45844128,100050.0,100040.0,0.000865]
[1733669492498,0.59565151,100050.0,100040.0,0.000865]
[1733669492705,0.76957551,100050.0,100020.0,0.37075829]
[1733669492907,0.58965151,100050.0,100020.0,0.37075829]
[1733669493111,0.179929,100040.0,100020.0,0.37075829]
[1733669493535,0.179929,100040.0,100020.0,0.01021288]
[1733669493536,0.179946,100030.0,100020.0,0.01021288]
[1733669493738,0.00625,100020.0,100000.0,0.179986]
[1733669493984,0.00625,100020.0,100000.0,0.28001551]
[1733669494190,0.00625,100020.0,100000.0,0.28296255]
[1733669494816,0.186216,100020.0,100000.0,0.28296255]
[1733669494993,0.00625,100020.0,100000.0,0.28296255]
[1733669495635,0.00625,100020.0,100000.0,0.10297655]
[1733669495861,0.00625,100020.0,100000.0,0.28397134]
[1733669496073,0.00625,100020.0,100000.0,0.28297155]
[1733669496275,0.00625,100020.0,100000.0,0.28397155]
[1733669497143,0.186215,100020.0,100000.0,0.10397655]
[1733669497564,0.366187,100020.0,100000.0,0.10102951]
[1733669497781,0.366187,100020.0,100000.0,0.09939463]
[1733669497986,0.546163,100020.0,100000.0,0.09939463]
[1733669498642,0.546163,100020.0,100000.0,0.001]
[1733669498643,0.65202856,100010.0,100000.0,0.001]
[1733669498872,0.186251,99999.0,99998.0,0.01]
[1733669499328,0.19497772,99999.0,99998.0,0.01]
[1733669500100,0.19514995,99999.0,99998.0,0.01]
[1733669500543,0.19514995,99999.0,99990.0,0.0008654]
[1733669500544,0.186266,99991.0,99990.0,0.0008654]
[1733669500774,0.18889995,99999.0,99990.0,0.0008654]
[1733669500775,0.00625,99994.0,99990.0,0.0008654]
[1733669500994,0.0087198,99991.0,99990.0,0.0008654]
[1733669501455,0.00625,99994.0,99990.0,0.0008654]
[1733669501682,0.00870542,99991.0,99990.0,0.0008654]
[1733669501909,0.180012,99993.0,99990.0,0.0008654]
[1733669502160,0.00870807,99991.0,99990.0,0.0008654]
[1733669502379,0.00625,99994.0,99990.0,0.0008654]
[1733669502610,0.00870807,99991.0,99990.0,0.0038654]
[1733669503069,0.00870729,99991.0,99990.0,0.0008654]
[1733669503304,0.004,99993.0,99990.0,0.0008654]
[1733669503545,0.00870729,99991.0,99990.0,0.0018654]
[1733669503820,0.012,99993.0,99990.0,0.0018654]
[1733669503821,0.186262,99994.0,99990.0,0.0008654]
[1733669504013,0.00870729,99991.0,99990.0,0.0008654]
[1733669504246,0.00870729,99991.0,99990.0,0.0018654]
[1733669504247,0.002,99991.0,99990.0,0.0018654]
[1733669504469,0.01070592,99991.0,99990.0,0.0018654]
[1733669505358,0.01070592,99991.0,99990.0,0.10089491]
[1733669505359,0.00870592,99991.0,99990.0,0.10089491]
[1733669505567,0.00870592,99991.0,99990.0,0.17489475]
[1733669505779,0.005,99991.0,99990.0,0.22309475]
[1733669506023,0.002,99991.0,99990.0,0.22209491]
[1733669506237,0.00017223,99999.0,99998.0,0.253003]
[1733669506488,0.00017223,99999.0,99998.0,0.35303251]
[1733669507123,0.00017223,99999.0,99998.0,0.28003251]
[1733669507359,0.00017223,99999.0,99998.0,0.10002951]
[1733669507570,0.00017223,99999.0,99994.0,0.18001]
[1733669507813,0.00017223,99999.0,99995.0,0.10002951]
[1733669508675,0.00017223,99999.0,99990.0,0.0008654]
[1733669508887,0.00117223,99999.0,99998.0,0.013]
[1733669509107,0.00017223,99999.0,99998.0,0.004]
[1733669509319,0.00117223,99999.0,99998.0,0.004]
[1733669509529,0.00117223,99999.0,99995.0,0.009]
[1733669509742,0.00017223,99999.0,99990.0,0.0008654]
[1733669509974,0.180011,99994.0,99990.0,0.0058654]
[1733669510191,0.180004,99998.0,99990.0,0.0008654]
[1733669510427,0.180011,99994.0,99990.0,0.0008654]
[1733669510634,0.180003,99998.0,99990.0,0.0008654]
[1733669512168,0.180003,99998.0,99990.0,0.0028654]
[1733669512576,0.180005,99997.0,99990.0,0.0028654]
[1733669513067,0.180005,99997.0,99990.0,0.0038654]
[1733669513281,0.36001,99997.0,99990.0,0.0038654]
[1733669513688,0.180005,99997.0,99990.0,0.0028654]
[1733669514115,0.180005,99997.0,99990.0,0.0008654]
[1733669514324,0.180009,99995.0,99990.0,0.0008654]
[1733669514748,0.00724391,99994.0,99990.0,0.0008654]
[1733669515394,0.00724391,99994.0,99991.0,0.023]
[1733669515824,0.186266,99991.0,99990.0,0.0018654]
[1733669516032,0.186266,99991.0,99990.0,0.0048654]
[1733669516241,0.19346837,99991.0,99990.0,0.0018654]
[1733669516655,0.19346837,99991.0,99990.0,0.0008654]
[1733669517890,0.19346837,99991.0,99990.0,0.0018654]
[1733669519396,0.00720237,99991.0,99990.0,0.0018654]
[1733669519832,0.00720237,99991.0,99990.0,0.0008654]
[1733669520463,0.00720237,99991.0,99990.0,0.0018654]
[1733669520914,0.00720237,99991.0,99990.0,0.0008654]
[1733669521125,0.00720237,99991.0,99990.0,0.0018654]
[1733669521332,0.00720237,99991.0,99990.0,0.0008654]
[1733669522667,0.00625,99992.0,99991.0,0.023]
[1733669523209,0.00625,99992.0,99990.0,0.0008654]
[1733669523415,0.00625,99992.0,99991.0,0.023]
[1733669523829,0.00625,99992.0,99991.0,0.028]
[1733669524243,0.00625,99992.0,99991.0,0.023]
[1733669525749,0.00625,99992.0,99991.0,0.025]
[1733669526174,0.00625,99992.0,99990.0,0.0008654]
[1733669526709,0.00625,99992.0,99991.0,0.03]
[1733669526922,0.00017223,99999.0,99991.0,0.025]
[1733669527207,0.00017223,99999.0,99992.0,0.023]
[1733669527442,0.00017223,99999.0,99992.0,0.12302951]
[1733669527908,0.00017223,99999.0,99993.0,0.180012]
[1733669528146,0.00017223,99999.0,99998.0,0.023]
[1733669528483,0.00017223,99999.0,99995.0,0.023]
[1733669528725,0.00017223,99999.0,99996.0,0.10102944]
[1733669528952,0.00017223,99999.0,99997.0,0.023]
[1733669530440,0.00117223,99999.0,99997.0,0.032]
[1733669531395,0.00117223,99999.0,99997.0,0.02669958]
[1733669534369,0.00117223,99999.0,99997.0,0.009]
[1733669534370,0.186253,99998.0,99997.0,0.009]
[1733669534579,0.19344933,99998.0,99997.0,0.009]
[1733669535231,0.19344933,99998.0,99997.0,0.003]
[1733669535651,0.19444933,99998.0,99997.0,0.003]
[1733669535871,0.186266,99991.0,99990.0,0.0008654]
[1733669536327,0.19344757,99991.0,99990.0,0.0008654]
[1733669537169,0.19344757,99991.0,99990.0,0.0018654]
[1733669540418,0.19344757,99991.0,99990.0,0.0008654]
[1733669540812,0.19344757,99991.0,99990.0,0.0018654]
[1733669542103,0.19344757,99991.0,99990.0,0.0008654]
[1733669542262,0.29347708,99991.0,99990.0,0.0008654]
[1733669542463,0.29547708,99991.0,99990.0,0.0008654]
[1733669542638,0.29747708,99991.0,99990.0,0.0008654]
[1733669542955,0.19744757,99991.0,99990.0,0.0008654]
[1733669543127,0.19544757,99991.0,99990.0,0.0008654]
[1733669543347,0.19644757,99991.0,99990.0,0.0008654]
[1733669543543,0.19444757,99991.0,99990.0,0.0008654]
[1733669543993,0.19444757,99991.0,99990.0,0.0018654]
[1733669543994,0.19944757,99991.0,99990.0,0.0018654]
[1733669544219,0.20244757,99991.0,99990.0,0.0018654]
[1733669545168,0.20244757,99991.0,99990.0,0.0008654]
[1733669545374,0.19344757,99991.0,99990.0,0.0008654]
[1733669545559,0.19944757,99991.0,99990.0,0.0018654]
[1733669545798,0.19644757,99991.0,99990.0,0.0008654]
[1733669546223,0.19544757,99991.0,99990.0,0.0008654]
[1733669546804,0.19644757,99991.0,99990.0,0.0008654]
[1733669550401,0.29647708,99991.0,99990.0,0.0008654]
[1733669553531,0.38581966,99991.0,99990.0,0.0008654]
[1733669553734,0.29647708,99991.0,99990.0,0.0008654]
[1733669554964,0.29547708,99991.0,99990.0,0.0008654]
[1733669555141,0.29847708,99991.0,99990.0,0.0008654]
[1733669555344,0.29647708,99991.0,99990.0,0.0008654]
[1733669555548,0.30147708,99991.0,99990.0,0.0018654]
[1733669555955,0.29647708,99991.0,99990.0,0.0008654]
[1733669556157,0.30247708,99991.0,99990.0,0.0018654]
[1733669557120,0.39181966,99991.0,99990.0,0.0018654]
[1733669557323,0.30247708,99991.0,99990.0,0.0018654]
[1733669558155,0.39181468,99991.0,99990.0,0.0018654]
[1733669558391,0.30247708,99991.0,99990.0,0.0018654]
[1733669559143,0.45247708,99991.0,99990.0,4e-07]
[1733669559355,0.60666334,99991.0,99990.0,4e-07]
[1733669559599,0.4726676,99991.0,99990.0,4e-07]
[1733669559852,0.58647259,99991.0,99990.0,4e-07]
[1733669560064,0.15,99990.0,99963.0,0.0150367]
[1733669560293,0.180064,99964.0,99963.0,0.0150367]
[1733669560553,0.186314,99964.0,99963.0,0.0150367]
[1733669560821,0.19414651,99964.0,99963.0,0.0150367]
[1733669561521,0.19431864,99964.0,99963.0,0.0150367]
[1733669561767,0.19431864,99964.0,99963.0,0.0170367]
[1733669561968,0.19531864,99964.0,99963.0,0.0210367]
[1733669562766,0.19431864,99964.0,99963.0,0.0170367]
[1733669562895,0.19431864,99964.0,99963.0,0.0200367]
[1733669563308,0.19431864,99964.0,99963.0,0.0170367]
[1733669563509,0.19431864,99964.0,99963.0,0.0200367]
[1733669563751,0.19431864,99964.0,99963.0,0.0180367]
[1733669564142,0.19431864,99964.0,99963.0,0.0200367]
[1733669564561,0.19431864,99964.0,99963.0,0.0180367]
[1733669564780,0.19431864,99964.0,99963.0,0.0170367]
[1733669565364,0.19431864,99964.0,99963.0,0.0190367]
[1733669565748,0.19431864,99964.0,99963.0,0.0210367]
[1733669566580,0.19431864,99964.0,99963.0,0.0170367]
[1733669567021,0.19431864,99964.0,99963.0,0.0180367]
[1733669567413,0.19431864,99964.0,99963.0,0.0190367]
[1733669567828,0.19431864,99964.0,99963.0,0.0180367]
[1733669568237,0.19431864,99964.0,99963.0,0.0190367]
[1733669568456,0.18806864,99964.0,99963.0,0.0190367]
[1733669568594,0.19431864,99964.0,99963.0,0.0190367]
[1733669568778,0.19431864,99964.0,99963.0,0.0160367]
[1733669568975,0.19431864,99964.0,99963.0,0.0190367]
[1733669569213,0.01425464,99964.0,99963.0,0.0190367]
[1733669571396,0.00800464,99964.0,99963.0,0.0190367]
[1733669571604,0.01425464,99964.0,99963.0,0.0190367]
[1733669584053,0.35172141,99964.0,99963.0,0.0190367]
[1733669584255,0.35354533,99964.0,99963.0,0.0190367]
[1733669584664,0.39817592,99964.0,99963.0,0.0190367]
[1733669584866,0.26428415,99964.0,99963.0,0.0190367]
[1733669585270,0.39822874,99964.0,99963.0,0.0160367]
[1733669585445,0.26428415,99964.0,99963.0,0.0150367]
[1733669585857,0.39817847,99964.0,99963.0,0.0160367]
[1733669586076,0.39817847,99964.0,99963.0,0.0150367]
[1733669586310,0.26728415,99964.0,99963.0,0.0150367]
[1733669586784,0.40213879,99964.0,99963.0,0.0150367]
[1733669587247,0.34873015,99964.0,99930.0,0.00126003]
[1733669587470,0.180124,99931.0,99919.0,0.0003]
[1733669587949,0.18012,99933.0,99919.0,0.0003]
[1733669587950,0.00778382,99930.0,99919.0,0.0003]
[1733669588180,0.00625,99934.0,99921.0,0.00100068]
[1733669588600,0.18790714,99933.0,99920.0,0.05641756]
[1733669588864,0.00778714,99933.0,99920.0,0.05641756]
[1733669589111,0.00778714,99933.0,99921.0,0.180142]
[1733669589319,0.001,99930.0,99927.0,0.0869]
[1733669589490,0.00778714,99933.0,99927.0,0.0829]
[1733669589746,0.180124,99931.0,99927.0,0.0829]
[1733669590005,0.00778271,99929.0,99927.0,0.0889]
[1733669590202,0.00778382,99930.0,99927.0,0.0849]
[1733669590405,0.01403161,99928.0,99927.0,0.0849]
[1733669590646,0.00625,99928.0,99927.0,0.0849]
[1733669590898,0.00625,99928.0,99927.0,0.0829]
[1733669590899,0.0140072,99928.0,99927.0,0.0829]
[1733669591637,0.0077572,99928.0,99927.0,0.0829]
[1733669591820,0.0140072,99928.0,99927.0,0.0829]
[1733669592022,0.0150072,99928.0,99927.0,0.0859]
[1733669592479,0.0150072,99928.0,99927.0,0.0829]
[1733669592906,0.0150072,99928.0,99927.0,0.0849]
[1733669594077,0.0150072,99928.0,99927.0,0.002]
[1733669597162,0.0087572,99928.0,99927.0,0.002]
[1733669597365,0.0150072,99928.0,99927.0,0.002]
[1733669598450,0.0087572,99928.0,99927.0,0.002]
[1733669598658,0.0150072,99928.0,99927.0,0.002]
[1733669599960,0.0150072,99928.0,99921.0,0.023]
[1733669600341,0.00625,99926.0,99921.0,0.023]
[1733669600585,0.00625,99926.0,99920.0,0.0008656]
[1733669600819,0.18785139,99927.0,99920.0,0.0008656]
[1733669600820,0.180142,99921.0,99920.0,0.0008656]
[1733669601167,0.18784602,99921.0,99920.0,0.0008656]
[1733669602472,0.18784602,99921.0,99920.0,0.0018656]
[1733669602667,0.18784602,99921.0,99920.0,0.0028656]
[1733669603631,0.18784602,99921.0,99920.0,0.00169319]
[1733669606882,0.00770402,99921.0,99920.0,0.00169319]
[1733669607323,0.00770402,99921.0,99920.0,0.02469319]
[1733669607857,0.00625,99922.0,99921.0,0.023]
[1733669608206,0.00625,99923.0,99921.0,0.023]
[1733669608442,0.186379,99929.0,99921.0,0.023]
[1733669608684,0.00625,99929.0,99921.0,0.023]
[1733669608915,0.00625,99926.0,99921.0,0.001]
[1733669609143,0.00770546,99928.0,99921.0,0.024]
[1733669609372,0.00770214,99925.0,99921.0,0.024]
[1733669609626,0.00625,99923.0,99921.0,0.024]
[1733669609857,0.00625,99923.0,99920.0,0.0008661]
[1733669610250,0.00763643,99922.0,99920.0,0.0008661]
[1733669611939,0.00763643,99922.0,99921.0,0.023]
[1733669612939,0.00763643,99922.0,99920.0,0.0008661]
[1733669613141,0.00763643,99922.0,99921.0,0.024]
[1733669614542,0.00763643,99922.0,99920.0,0.0008661]
[1733669614777,0.00763643,99922.0,99921.0,0.023]
[1733669615190,0.180142,99921.0,99920.0,0.0018661]
[1733669615633,0.18778311,99921.0,99920.0,0.0008661]
[1733669617023,0.19403311,99921.0,99920.0,0.0008661]
[1733669617516,0.19403311,99921.0,99920.0,0.0018661]
[1733669617977,0.19403311,99921.0,99920.0,0.0028661]
[1733669623717,0.18778311,99921.0,99920.0,0.0028661]
[1733669623955,0.01389111,99921.0,99920.0,0.0028661]
[1733669624165,0.01389111,99921.0,99920.0,0.0258661]
[1733669624370,0.00764111,99921.0,99920.0,0.0258661]
[1733669624588,0.186379,99928.0,99921.0,0.023]
[1733669624795,0.00625,99926.0,99922.0,0.075]
[1733669625001,0.00625,99925.0,99923.0,0.023]
[1733669625221,0.00774489,99925.0,99923.0,0.023]
[1733669625418,0.00625,99926.0,99923.0,0.023]
[1733669625624,0.00774378,99924.0,99923.0,0.023]
[1733669625862,0.00625,99926.0,99923.0,0.023]
[1733669626135,0.00774378,99924.0,99923.0,0.023]
[1733669626334,0.00625,99926.0,99923.0,0.023]
[1733669626539,0.00767303,99925.0,99923.0,0.023]
[1733669626752,0.00767192,99924.0,99923.0,0.023]
[1733669627018,0.00767082,99924.0,99923.0,0.023]
[1733669627511,0.00625,99926.0,99923.0,0.023]
[1733669627766,0.00767192,99924.0,99923.0,0.023]
[1733669628017,0.001,99926.0,99923.0,0.023]
[1733669628261,0.0017322,99930.0,99923.0,0.023]
[1733669628262,0.00767192,99924.0,99923.0,0.023]
[1733669628491,0.00625,99928.0,99923.0,0.023]
[1733669628924,0.00767337,99927.0,99923.0,0.023]
[1733669629351,0.01392337,99927.0,99923.0,0.023]
[1733669630170,0.00767337,99927.0,99925.0,0.023]
[1733669630408,0.00767337,99927.0,99926.0,0.58886275]
[1733669630631,0.0017322,99930.0,99929.0,0.180127]
[1733669630838,0.0017322,99930.0,99929.0,0.45415696]
[1733669631044,0.0017322,99930.0,99929.0,0.45315651]
[1733669631259,0.0017322,99930.0,99929.0,0.49935651]
[1733669631442,0.0017322,99930.0,99929.0,0.69935651]
[1733669631683,0.0017322,99930.0,99929.0,0.77435651]
[1733669631894,0.0017322,99930.0,99929.0,0.75435651]
[1733669632319,0.0027322,99930.0,99929.0,0.75535651]
[1733669632524,0.0027322,99930.0,99929.0,1.02496702]
[1733669632764,2e-07,99930.0,99929.0,1.02496702]
[1733669632976,0.00625,99966.0,99936.0,0.05]
[1733669633185,0.00625,99963.0,99960.0,0.023]
[1733669633397,0.00625,99963.0,99962.0,0.023]
[1733669633816,0.00625,99963.0,99958.0,0.023]
[1733669634038,0.00625,99963.0,99958.0,0.12302951]
[1733669634449,0.00625,99963.0,99958.0,0.12360343]
[1733669634866,0.00625,99963.0,99960.0,0.023]
[1733669636144,0.00625,99963.0,99960.0,0.028]
[1733669636565,0.180045,99975.0,99962.0,0.023]
[1733669636773,0.00625,99972.0,99962.0,0.023]
[1733669636997,0.00625,99971.0,99962.0,0.023]
[1733669637198,0.01142793,99971.0,99962.0,0.023]
[1733669637374,0.01142793,99971.0,99963.0,0.180066]
[1733669637673,0.00517793,99971.0,99968.0,0.023]
[1733669637888,0.00517793,99971.0,99969.0,0.180055]
[1733669638093,0.00517793,99971.0,99968.0,0.023]
[1733669638094,0.00625,99976.0,99970.0,0.023]
[1733669638305,0.00625,99973.0,99968.0,0.12302951]
[1733669638951,0.00625,99973.0,99970.0,0.023]
[1733669640533,0.00625,99973.0,99969.0,0.023]
[1733669641365,0.0051715,99972.0,99969.0,0.023]
[1733669641629,0.0051715,99972.0,99970.0,0.001]
[1733669641842,0.00625,99973.0,99970.0,0.001]
[1733669642074,0.00625,99973.0,99969.0,0.023]
[1733669642305,0.00526823,99972.0,99969.0,0.023]
[1733669642525,0.00526823,99972.0,99969.0,0.025]
[1733669642745,0.00625,99973.0,99969.0,0.025]
[1733669643000,0.001,99972.0,99969.0,0.028]
[1733669643220,0.00626713,99972.0,99969.0,0.028]
[1733669643447,0.001,99972.0,99969.0,0.028]
[1733669643666,0.00625,99973.0,99969.0,0.023]
[1733669643898,0.00526602,99971.0,99969.0,0.023]
[1733669644116,0.00625,99973.0,99969.0,0.028]
[1733669644348,0.00625,99973.0,99971.0,0.023]
[1733669644562,0.00625,99974.0,99971.0,0.023]
[1733669644787,0.00625,99974.0,99970.0,0.023]
[1733669645216,0.180048,99973.0,99970.0,0.023]
[1733669645488,0.00625,99974.0,99970.0,0.023]
[1733669645898,0.00625,99974.0,99971.0,0.001]
[1733669646283,0.001,99972.0,99971.0,0.001]
[1733669646499,0.00625,99974.0,99971.0,0.001]
[1733669646500,0.180048,99973.0,99971.0,0.001]
[1733669646909,0.180048,99973.0,99971.0,0.024]
[1733669647263,0.180048,99973.0,99968.0,0.10002951]
[1733669647264,0.180048,99973.0,99969.0,0.023]
[1733669647683,0.180048,99973.0,99972.0,0.023]
[1733669647890,0.180048,99973.0,99969.0,0.023]
[1733669648096,0.180048,99973.0,99971.0,0.023]
[1733669648492,0.180048,99973.0,99969.0,0.023]
[1733669648697,0.360097,99973.0,99969.0,0.023]
[1733669648909,0.360097,99973.0,99969.0,0.025]
[1733669649319,0.00530847,99972.0,99971.0,0.028]
[1733669649520,0.00530847,99972.0,99971.0,0.023]
[1733669649935,0.180052,99971.0,99970.0,0.023]
[1733669650400,0.00530957,99971.0,99970.0,0.023]
[1733669650645,0.18536157,99971.0,99969.0,0.023]
[1733669650859,0.180052,99971.0,99969.0,0.023]
[1733669651090,0.00530847,99970.0,99969.0,0.023]
[1733669652287,0.00530847,99970.0,99969.0,0.025]
[1733669653258,0.00630847,99970.0,99969.0,0.032]
[1733669653505,0.00630847,99970.0,99969.0,0.03]
[1733669653746,0.00630847,99970.0,99969.0,0.033]
[1733669656773,0.00630847,99970.0,99969.0,0.01]
[1733669658926,0.01255847,99970.0,99969.0,0.01]
[1733669659864,0.01255847,99970.0,99969.0,0.007]
[1733669660101,0.540165,99969.0,99958.0,0.00057392]
[1733669660322,0.180073,99959.0,99958.0,0.00057392]
[1733669660725,0.18537202,99959.0,99958.0,0.00057392]
[1733669662649,0.18637202,99959.0,99958.0,0.00657392]
[1733669663256,0.18637202,99959.0,99958.0,0.00857392]
[1733669665432,0.19262202,99959.0,99958.0,0.00857392]
[1733669666567,0.19162202,99959.0,99958.0,0.00057392]
[1733669666982,0.19162202,99959.0,99958.0,0.00257392]
[1733669667218,0.19162202,99959.0,99958.0,0.00057392]
[1733669675964,0.29165153,99959.0,99958.0,0.00057392]
[1733669677083,0.3070318,99959.0,99958.0,0.00157392]
[1733669677287,0.3100318,99959.0,99958.0,0.00157392]
[1733669677694,0.29965153,99959.0,99958.0,0.00157392]
[1733669678317,0.29465153,99959.0,99958.0,0.00057392]
[1733669678742,0.30165153,99959.0,99958.0,0.00157392]
[1733669678948,0.29165153,99959.0,99958.0,0.00057392]
[1733669679368,0.30065153,99959.0,99958.0,0.00157392]
[1733669679782,0.29465153,99959.0,99958.0,0.00057392]
[1733669679984,0.29665153,99959.0,99958.0,0.00157392]
[1733669680189,0.29965153,99959.0,99958.0,0.00157392]
[1733669680390,0.29465153,99959.0,99958.0,0.00057392]
[1733669681823,0.29965153,99959.0,99958.0,0.00157392]
[1733669685969,0.19962202,99959.0,99958.0,0.00157392]
[1733669687239,0.01329902,99959.0,99958.0,0.00157392]
[1733669688163,0.01329902,99959.0,99958.0,0.00057392]
[1733669688164,0.00529902,99959.0,99958.0,0.00057392]
[1733669688427,0.00629902,99959.0,99958.0,0.00057392]
[1733669688677,0.00729902,99959.0,99958.0,0.00057392]
[1733669688896,0.00529902,99959.0,99958.0,0.00057392]
[1733669689351,0.00629902,99959.0,99958.0,0.00057392]
[1733669689552,0.00729902,99959.0,99958.0,0.00057392]
[1733669689765,0.00629902,99959.0,99958.0,0.00057392]
[1733669689966,0.00529902,99959.0,99958.0,0.02557392]
[1733669691166,0.00529902,99959.0,99958.0,0.00057392]
[1733669691368,0.00529902,99959.0,99958.0,0.02757392]
[1733669691612,0.29165153,99959.0,99958.0,0.00257392]
[1733669692027,0.29265153,99959.0,99958.0,0.00757392]
[1733669692444,0.29265153,99959.0,99958.0,0.01057392]
[1733669692870,0.29265153,99959.0,99958.0,0.00057392]
[1733669692871,0.29165153,99959.0,99958.0,0.00057392]
[1733669693089,0.29265153,99959.0,99958.0,0.00057392]
[1733669693301,0.29365153,99959.0,99958.0,0.00057392]
[1733669693465,0.29365153,99959.0,99930.0,0.0008653]
[1733669693466,0.00625,99931.0,99930.0,0.0008653]
[1733669693739,0.28640351,99931.0,99930.0,0.0008653]
[1733669693941,0.29227377,99931.0,99930.0,0.0008653]
[1733669695220,0.19224426,99931.0,99930.0,0.0008653]
[1733669695476,0.19724426,99931.0,99930.0,0.0008653]
[1733669696000,0.19524426,99931.0,99930.0,0.0008653]
[1733669696112,0.19224426,99931.0,99930.0,0.0008653]
[1733669696315,0.29227377,99931.0,99930.0,0.0008653]
[1733669696530,0.44427377,99931.0,99930.0,3e-07]
[1733669697666,0.44727377,99931.0,99930.0,3e-07]
[1733669697907,0.44427377,99931.0,99930.0,3e-07]
[1733669698132,0.44227377,99931.0,99930.0,3e-07]
[1733669698364,0.45127377,99931.0,99930.0,0.0010003]
[1733669698610,0.45327377,99931.0,99930.0,0.0010003]
[1733669699063,0.51979222,99931.0,99930.0,0.0010003]
[1733669699293,0.52279222,99931.0,99930.0,0.0010003]
[1733669699550,0.45427377,99931.0,99930.0,0.0010003]
[1733669704583,0.35424426,99931.0,99930.0,0.0010003]
[1733669707164,0.45427377,99931.0,99930.0,0.0010003]
[1733669710393,0.45427377,99931.0,99930.0,3e-07]
[1733669711730,0.50427377,99931.0,99930.0,3e-07]
[1733669713220,0.59769985,99931.0,99930.0,3e-07]
[1733669713477,0.59769985,99931.0,99930.0,0.0008656]
[1733669714668,0.55427377,99931.0,99930.0,6e-07]
[1733669716670,0.45427377,99931.0,99930.0,6e-07]
[1733669718243,0.35424426,99931.0,99930.0,6e-07]
[1733669719678,0.37099426,99931.0,99930.0,0.0827006]
[1733669719883,0.37724426,99931.0,99930.0,0.0827006]
[1733669720543,0.22724426,99931.0,99930.0,0.0827006]
[1733669721685,0.19799426,99931.0,99930.0,0.0827006]
[1733669721895,0.01787026,99931.0,99930.0,0.1278006]
[1733669722482,0.00887026,99931.0,99930.0,0.1278006]
[1733669722900,0.01787026,99931.0,99930.0,0.1288006]
[1733669723075,0.00587026,99931.0,99930.0,0.1278006]
[1733669723276,0.00887026,99931.0,99930.0,0.1278006]
[1733669723476,0.003,99931.0,99930.0,0.1288006]
[1733669723678,0.00903846,99931.0,99930.0,0.1288006]
[1733669723880,0.180121,99933.0,99930.0,0.1288006]
[1733669724230,0.00603846,99931.0,99930.0,0.1288006]
[1733669724424,0.180121,99933.0,99930.0,0.1288006]
[1733669724624,0.180124,99931.0,99930.0,0.1288006]
[1733669724757,0.18616246,99931.0,99930.0,0.1278006]
[1733669724960,0.180124,99931.0,99930.0,0.1278006]
[1733669725165,0.18616246,99931.0,99930.0,0.1278006]
[1733669725363,0.00603846,99931.0,99930.0,0.1278006]
[1733669725568,0.181121,99933.0,99930.0,0.1278006]
[1733669725812,0.180121,99933.0,99930.0,0.1278006]
[1733669725985,0.00603736,99932.0,99930.0,0.1278006]
[1733669726419,0.180124,99931.0,99930.0,0.1278006]
[1733669726892,0.00603846,99931.0,99930.0,0.1278006]
[1733669727043,0.00603846,99931.0,99930.0,0.0827006]
[1733669727044,0.03528846,99931.0,99930.0,0.0827006]
[1733669728608,0.01228846,99931.0,99930.0,0.0777006]
[1733669729689,0.186392,99921.0,99920.0,0.0008661]
[1733669730185,0.192426,99921.0,99920.0,0.0008661]
[1733669731148,0.19300189,99921.0,99920.0,0.0008661]
[1733669731600,0.19300189,99921.0,99920.0,0.0836661]
[1733669735330,0.01285989,99921.0,99920.0,0.0846661]
[1733669735553,0.01285989,99921.0,99920.0,0.0836661]
[1733669735971,0.01285989,99921.0,99920.0,0.0856661]
[1733669736170,0.01285989,99921.0,99920.0,0.0836661]
[1733669736397,0.01285989,99921.0,99920.0,0.0846661]
[1733669736640,0.01285989,99921.0,99920.0,0.0876661]
[1733669736930,0.01285989,99921.0,99920.0,0.0866661]
[1733669737820,0.01285989,99921.0,99920.0,0.0876661]
[1733669737821,0.00660989,99921.0,99920.0,0.0876661]
[1733669738260,0.01285989,99921.0,99920.0,0.0876661]
[1733669738919,0.00660989,99921.0,99920.0,0.0876661]
[1733669740199,0.00057589,99921.0,99920.0,0.0876661]
[1733669740439,0.00057589,99921.0,99920.0,0.09811843]
[1733669740649,0.00057589,99921.0,99920.0,0.13834794]
[1733669741480,0.00057589,99921.0,99920.0,0.31849194]
[1733669743230,0.00057589,99921.0,99920.0,0.31749194]
[1733669743661,0.00057589,99921.0,99920.0,0.31949194]
[1733669744309,0.00057589,99921.0,99920.0,0.01331843]
[1733669744528,0.00057589,99921.0,99920.0,0.0028661]
[1733669744740,0.00057589,99921.0,99920.0,0.0068661]
[1733669745797,0.00662034,99921.0,99920.0,0.0068661]
[1733669746015,0.00057589,99921.0,99920.0,0.0068661]
[1733669746196,0.00662034,99921.0,99920.0,0.0068661]
[1733669746429,0.00057589,99921.0,99920.0,0.0068661]
[1733669746633,0.00662034,99921.0,99920.0,0.0834661]
[1733669747046,0.00057589,99921.0,99920.0,0.0834661]
[1733669770597,0.00057589,99921.0,99920.0,0.0068661]
[1733669774242,0.00662663,99921.0,99920.0,0.0068661]
[1733669774447,0.00057589,99921.0,99920.0,0.0068661]
[1733669774583,0.00662663,99921.0,99920.0,0.0068661]
[1733669774810,0.00057589,99921.0,99920.0,0.0068661]
[1733669775014,0.00662663,99921.0,99920.0,0.0068661]
[1733669775195,0.00057589,99921.0,99920.0,0.0068661]
[1733669775396,0.00655199,99921.0,99920.0,0.0068661]
[1733669775617,0.00057589,99921.0,99920.0,0.0068661]
[1733669775855,0.00655199,99921.0,99920.0,0.0068661]
[1733669776048,0.00057589,99921.0,99920.0,0.0068661]
[1733669776220,0.00655199,99921.0,99920.0,0.0068661]
[1733669776418,0.00057589,99921.0,99920.0,0.0068661]
[1733669776643,0.00655199,99921.0,99920.0,0.0068661]
[1733669776846,0.00057589,99921.0,99920.0,0.0068661]
[1733669777048,0.00655199,99921.0,99920.0,0.0068661]
[1733669777255,0.00057589,99921.0,99920.0,0.0068661]
[1733669777456,0.00655199,99921.0,99920.0,0.0068661]
[1733669784342,0.00655199,99921.0,99920.0,0.09675833]
[1733669784567,0.00655199,99921.0,99920.0,0.0068661]